fUSD/lending_fUSD_20260505
["ID","MTS","AMOUNT","RATE_DAILY","PERIOD"]
[421579394,1777913433000,-155.87585118,0.000149,2]
[421579396,1777913433000,-3132.07,0.00014959,2]
[421579401,1777913433000,-151.0,0.00014987,2]
[421579405,1777913433000,-500.0,0.00014999,2]
[421579402,1777913433000,-151.0,0.00014987,2]
[421579400,1777913433000,-222.515064,0.00014987,2]
[421579398,1777913433000,-151.0,0.00014987,2]
[421579395,1777913433000,-483.64442687,0.000149,2]
[421579397,1777913433000,-151.0,0.00014987,2]
[421579399,1777913433000,-151.0,0.00014987,2]
[421579403,1777913433000,-19223.0265116,0.00014987,2]
[421579404,1777913433000,-262.03149038,0.0001499,2]
[421579407,1777913433000,-544.144535,0.00015,2]
[421579406,1777913433000,-194993.76557401,0.00015,2]
[421579359,1777913433000,-1116.1278891,0.00013699,2]
[421579387,1777913433000,-161.03,0.00014247,2]
[421579385,1777913433000,-166.66,0.00014212,2]
[421579391,1777913433000,-736.0,0.00014613,2]
[421579384,1777913433000,-159.03148013,0.00014196,2]
[421579358,1777913433000,-1116.1278891,0.00013699,2]
[421579360,1777913433000,-1116.1278891,0.00013699,2]
[421579361,1777913433000,-1116.1278891,0.00013699,2]
[421579365,1777913433000,-1116.1278891,0.00013699,2]
[421579383,1777913433000,-151.0,0.00014196,2]
[421579363,1777913433000,-1116.1278891,0.00013699,2]
[421579368,1777913433000,-1116.1278891,0.00013699,2]
[421579366,1777913433000,-1116.1278891,0.00013699,2]
[421579367,1777913433000,-1116.1278891,0.00013699,2]
[421579364,1777913433000,-1116.1278891,0.00013699,2]
[421579372,1777913433000,-2000.0,0.000139,5]
[421579362,1777913433000,-1116.1278891,0.00013699,2]
[421579375,1777913433000,-166.66,0.00014041,2]
[421579374,1777913433000,-724.01,0.00014008,2]
[421579382,1777913433000,-151.0,0.00014196,2]
[421579371,1777913433000,-166.66,0.0001387,2]
[421579377,1777913433000,-151.0,0.00014196,2]
[421579376,1777913433000,-200.0,0.00014196,2]
[421579379,1777913433000,-151.0,0.00014196,2]
[421579380,1777913433000,-151.0,0.00014196,2]
[421579381,1777913433000,-151.0,0.00014196,2]
[421579373,1777913433000,-250.0,0.00014,2]
[421579415,1777913438000,-750.97674804,0.00015,2]
[421579416,1777913438000,-6250.77960331,0.00015,2]
[421579418,1777913438000,-47963.41993777,0.00015,2]
[421579417,1777913438000,-1086.4395005,0.00015,2]
[421579423,1777913438000,-540.01220046,0.00015,2]
[421579421,1777913438000,-873.39,0.00015,2]
[421579422,1777913438000,-7956.99907064,0.00015,2]
[421579419,1777913438000,-380.52932165,0.00015,2]
[421579424,1777913438000,-763953.24445683,0.00015,2]
[421579420,1777913438000,-1172.96774003,0.00015,2]
[421579448,1777913440000,-81819.67322928,0.00015,2]
[421579449,1777913440000,-0.00092342,0.00015,2]
[421579451,1777913440000,-14966.60637783,0.00015,2]
[421579450,1777913440000,-7593.808309,0.00015,2]
[421579455,1777913440000,-24255.2248874,0.00015,2]
[421579453,1777913440000,-3532.0,0.00015,2]
[421579456,1777913440000,-957.9112616,0.00015,2]
[421579452,1777913440000,-1744.07742021,0.00015,2]
[421579454,1777913440000,-786.8653497,0.00015,2]
[421579508,1777913446000,-335.381476,0.00016438,2]
[421579492,1777913446000,-819.06,0.00016438,5]
[421579493,1777913446000,-151.0,0.00016438,2]
[421579486,1777913446000,-319.545372,0.0001611,2]
[421579481,1777913446000,-150.0,0.000159,2]
[421579483,1777913446000,-184.0,0.00015901,2]
[421579484,1777913446000,-1069.0,0.00015987,2]
[421579485,1777913446000,-300.0,0.00016,2]
[421579487,1777913446000,-624.471804,0.0001617,2]
[421579495,1777913446000,-500.0,0.00016438,2]
[421579494,1777913446000,-153.773432,0.00016438,2]
[421579497,1777913446000,-300.0,0.00016438,2]
[421579498,1777913446000,-500.0,0.00016438,2]
[421579500,1777913446000,-500.0,0.00016438,2]
[421579499,1777913446000,-500.0,0.00016438,2]
[421579501,1777913446000,-500.0,0.00016438,2]
[421579504,1777913446000,-500.0,0.00016438,2]
[421579503,1777913446000,-500.0,0.00016438,2]
[421579502,1777913446000,-500.0,0.00016438,2]
[421579506,1777913446000,-500.0,0.00016438,2]
[421579505,1777913446000,-500.0,0.00016438,2]
[421579507,1777913446000,-335.381476,0.00016438,2]
[421579509,1777913446000,-335.381476,0.00016438,2]
[421579490,1777913446000,-200.0,0.0001634,2]
[421579496,1777913446000,-500.0,0.00016438,2]
[421579488,1777913446000,-208.157269,0.0001617,2]
[421579482,1777913446000,-150.0,0.000159,2]
[421579512,1777913446000,-335.381476,0.00016438,2]
[421579468,1777913446000,-1805.53,0.00015184,2]
[421579458,1777913446000,-189318.85285763,0.00015,2]
[421579459,1777913446000,-152.090703,0.00015,2]
[421579467,1777913446000,-151.0,0.00015,2]
[421579461,1777913446000,-151.0,0.00015,2]
[421579463,1777913446000,-151.0,0.00015,2]
[421579464,1777913446000,-151.0,0.00015,2]
[421579460,1777913446000,-151.0,0.00015,2]
[421579465,1777913446000,-151.0,0.00015,2]
[421579462,1777913446000,-151.0,0.00015,2]
[421579491,1777913446000,-585.6,0.00016438,2]
[421579466,1777913446000,-151.0,0.00015,2]
[421579478,1777913446000,-161.03,0.0001583,2]
[421579480,1777913446000,-150.0,0.000159,2]
[421579479,1777913446000,-2000.0,0.0001585,2]
[421579469,1777913446000,-1517.64,0.000153,2]
[421579475,1777913446000,-724.01,0.00015564,2]
[421579473,1777913446000,-1235.42511841,0.000155,2]
[421579474,1777913446000,-501.36743233,0.00015555,2]
[421579472,1777913446000,-3857.52166123,0.00015456,2]
[421579471,1777913446000,-514.22740763,0.000154,2]
[421579477,1777913446000,-2266.50957798,0.00015807,2]
[421579476,1777913446000,-1594.06094914,0.00015634,2]
[421579470,1777913446000,-2290.04373225,0.00015371,2]
[421579510,1777913446000,-335.381476,0.00016438,2]
[421579489,1777913446000,-165.269112,0.00016337,7]
[421579515,1777913446000,-151.0,0.00016438,2]
[421579542,1777913446000,-151.0,0.00016438,2]
[421579543,1777913446000,-151.0,0.00016438,2]
[421579541,1777913446000,-151.0,0.00016438,2]
[421579552,1777913446000,-151.0,0.00016438,2]
[421579544,1777913446000,-151.0,0.00016438,2]
[421579545,1777913446000,-151.0,0.00016438,2]
[421579551,1777913446000,-151.0,0.00016438,2]
[421579547,1777913446000,-151.0,0.00016438,2]
[421579549,1777913446000,-151.0,0.00016438,2]
[421579550,1777913446000,-151.0,0.00016438,2]
[421579548,1777913446000,-151.0,0.00016438,2]
[421579562,1777913446000,-500.0,0.00016438,2]
[421579554,1777913446000,-500.0,0.00016438,2]
[421579564,1777913446000,-3857.52166123,0.00016671,2]
[421579553,1777913446000,-183.290217,0.00016438,2]
[421579555,1777913446000,-500.0,0.00016438,2]
[421579556,1777913446000,-500.0,0.00016438,2]
[421579557,1777913446000,-500.0,0.00016438,2]
[421579558,1777913446000,-500.0,0.00016438,2]
[421579563,1777913446000,-2161.08716362,0.000165,2]
[421579559,1777913446000,-298.88065623,0.00016438,2]
[421579560,1777913446000,-500.0,0.00016438,2]
[421579561,1777913446000,-500.0,0.00016438,2]
[421579511,1777913446000,-335.381476,0.00016438,2]
[421579565,1777913446000,-199.45,0.00016712,2]
[421579538,1777913446000,-151.0,0.00016438,2]
[421579546,1777913446000,-151.0,0.00016438,2]
[421579535,1777913446000,-151.0,0.00016438,2]
[421579534,1777913446000,-151.0,0.00016438,2]
[421579513,1777913446000,-335.381476,0.00016438,2]
[421579516,1777913446000,-151.0,0.00016438,2]
[421579518,1777913446000,-151.0,0.00016438,2]
[421579520,1777913446000,-151.0,0.00016438,2]
[421579519,1777913446000,-151.0,0.00016438,2]
[421579521,1777913446000,-151.0,0.00016438,2]
[421579522,1777913446000,-151.0,0.00016438,2]
[421579525,1777913446000,-151.0,0.00016438,2]
[421579517,1777913446000,-151.0,0.00016438,2]
[421579523,1777913446000,-151.0,0.00016438,2]
[421579524,1777913446000,-151.0,0.00016438,2]
[421579514,1777913446000,-335.381476,0.00016438,2]
[421579527,1777913446000,-151.0,0.00016438,2]
[421579528,1777913446000,-151.0,0.00016438,2]
[421579539,1777913446000,-151.0,0.00016438,2]
[421579536,1777913446000,-151.0,0.00016438,2]
[421579532,1777913446000,-151.0,0.00016438,2]
[421579537,1777913446000,-151.0,0.00016438,2]
[421579533,1777913446000,-151.0,0.00016438,2]
[421579529,1777913446000,-151.0,0.00016438,2]
[421579540,1777913446000,-151.0,0.00016438,2]
[421579530,1777913446000,-151.0,0.00016438,2]
[421579526,1777913446000,-151.0,0.00016438,2]
[421579531,1777913446000,-151.0,0.00016438,2]
[421579605,1777913447000,-500.0,0.00019178,2]
[421579602,1777913447000,-3857.52166123,0.00019099,2]
[421579603,1777913447000,-500.0,0.00019178,2]
[421579595,1777913447000,-3857.52166123,0.00017885,2]
[421579593,1777913447000,-403.0,0.000177,5]
[421579600,1777913447000,-2290.04373225,0.00018843,2]
[421579599,1777913447000,-724.01,0.00018677,2]
[421579598,1777913447000,-631.46744813,0.000185,3]
[421579597,1777913447000,-585.6,0.0001841,2]
[421579615,1777913447000,-400.0,0.0002,2]
[421579601,1777913447000,-161.03,0.00018997,2]
[421579608,1777913447000,-500.0,0.00019178,2]
[421579607,1777913447000,-500.0,0.00019178,2]
[421579604,1777913447000,-500.0,0.00019178,2]
[421579609,1777913447000,-500.0,0.00019178,2]
[421579614,1777913447000,-207.46,0.0002,2]
[421579616,1777913447000,-1550.51821281,0.0002,2]
[421579611,1777913447000,-500.0,0.00019178,2]
[421579610,1777913447000,-500.0,0.00019178,2]
[421579613,1777913447000,-430.9482059,0.000199,2]
[421579612,1777913447000,-151.0,0.00019178,2]
[421579617,1777913447000,-178.41311344,0.0002,2]
[421579621,1777913447000,-168.04006807,0.0002,2]
[421579596,1777913447000,-350.0,0.00018,2]
[421579606,1777913447000,-1000.0,0.00019178,2]
[421579594,1777913447000,-835.4,0.000178,2]
[421579566,1777913447000,-168.84,0.00016834,2]
[421579587,1777913447000,-502.01972561,0.00016986,2]
[421579619,1777913447000,-3950.0,0.0002,2]
[421579567,1777913447000,-1085.82,0.000169,2]
[421579568,1777913447000,-917.27,0.0001697,2]
[421579578,1777913447000,-372.47722619,0.00016986,2]
[421579579,1777913447000,-500.0,0.00016986,2]
[421579572,1777913447000,-500.0,0.00016986,2]
[421579571,1777913447000,-500.0,0.00016986,2]
[421579573,1777913447000,-500.0,0.00016986,2]
[421579577,1777913447000,-500.0,0.00016986,2]
[421579569,1777913447000,-901.97816903,0.00016986,2]
[421579575,1777913447000,-500.0,0.00016986,2]
[421579576,1777913447000,-500.0,0.00016986,2]
[421579570,1777913447000,-500.0,0.00016986,2]
[421579574,1777913447000,-500.0,0.00016986,2]
[421579581,1777913447000,-500.0,0.00016986,2]
[421579591,1777913447000,-546.39824526,0.00017483,2]
[421579580,1777913447000,-1000.0,0.00016986,2]
[421579582,1777913447000,-500.0,0.00016986,2]
[421579583,1777913447000,-500.0,0.00016986,2]
[421579585,1777913447000,-676.75690271,0.00016986,2]
[421579589,1777913447000,-2000.0,0.00017291,2]
[421579586,1777913447000,-569.48240868,0.00016986,2]
[421579590,1777913447000,-161.03,0.00017414,2]
[421579588,1777913447000,-724.01,0.0001712,2]
[421579584,1777913447000,-500.0,0.00016986,2]
[421579592,1777913447000,-177.0,0.00017691,2]
[421579622,1777913447000,-188.0,0.0002,2]
[421579620,1777913447000,-1308.9812858,0.0002,2]
[421579626,1777913447000,-577.0,0.0002,2]
[421579655,1777913447000,-500.0,0.000212,2]
[421579651,1777913447000,-500.0,0.000212,2]
[421579650,1777913447000,-500.0,0.000212,2]
[421579652,1777913447000,-500.0,0.000212,2]
[421579657,1777913447000,-500.0,0.000212,2]
[421579658,1777913447000,-500.0,0.000212,2]
[421579659,1777913447000,-500.0,0.000212,2]
[421579661,1777913447000,-500.0,0.000212,2]
[421579660,1777913447000,-500.0,0.000212,2]
[421579663,1777913447000,-500.0,0.000212,2]
[421579662,1777913447000,-500.0,0.000212,2]
[421579668,1777913447000,-500.0,0.000212,2]
[421579656,1777913447000,-500.0,0.000212,2]
[421579664,1777913447000,-500.0,0.000212,2]
[421579665,1777913447000,-500.0,0.000212,2]
[421579670,1777913447000,-500.0,0.000212,2]
[421579669,1777913447000,-500.0,0.000212,2]
[421579671,1777913447000,-500.0,0.000212,2]
[421579676,1777913447000,-500.0,0.000212,2]
[421579672,1777913447000,-500.0,0.000212,2]
[421579678,1777913447000,-500.0,0.000212,2]
[421579674,1777913447000,-500.0,0.000212,2]
[421579673,1777913447000,-500.0,0.000212,2]
[421579677,1777913447000,-500.0,0.000212,2]
[421579675,1777913447000,-500.0,0.000212,2]
[421579618,1777913447000,-4365.74,0.0002,2]
[421579667,1777913447000,-500.0,0.000212,2]
[421579654,1777913447000,-500.0,0.000212,2]
[421579666,1777913447000,-500.0,0.000212,2]
[421579653,1777913447000,-500.0,0.000212,2]
[421579649,1777913447000,-500.0,0.000212,2]
[421579623,1777913447000,-496.0,0.0002,2]
[421579625,1777913447000,-198.0,0.0002,2]
[421579627,1777913447000,-183.0,0.0002,2]
[421579628,1777913447000,-2607.93,0.00020145,2]
[421579624,1777913447000,-169.0,0.0002,2]
[421579630,1777913447000,-3857.52166123,0.00020313,2]
[421579634,1777913447000,-151.0,0.00020313,2]
[421579631,1777913447000,-151.0,0.00020313,2]
[421579632,1777913447000,-151.0,0.00020313,2]
[421579635,1777913447000,-151.0,0.00020313,2]
[421579633,1777913447000,-151.0,0.00020313,2]
[421579636,1777913447000,-585.6,0.00020381,2]
[421579629,1777913447000,-790.75,0.00020306,2]
[421579648,1777913447000,-500.0,0.000212,2]
[421579637,1777913447000,-161.03,0.0002058,2]
[421579646,1777913447000,-183.0,0.00021,2]
[421579647,1777913447000,-151.0,0.000212,2]
[421579640,1777913447000,-3463.17,0.00020951,2]
[421579642,1777913447000,-496.0,0.00021,2]
[421579644,1777913447000,-198.0,0.00021,2]
[421579643,1777913447000,-169.0,0.00021,2]
[421579639,1777913447000,-49436.0,0.000206,2]
[421579641,1777913447000,-188.0,0.00021,2]
[421579638,1777913447000,-1085.82,0.000206,2]
[421579645,1777913447000,-577.0,0.00021,2]
[421579714,1777913448000,-500.0,0.000212,2]
[421579726,1777913448000,-500.0,0.000212,2]
[421579725,1777913448000,-500.0,0.000212,2]
[421579712,1777913448000,-500.0,0.000212,2]
[421579716,1777913448000,-500.0,0.000212,2]
[421579721,1777913448000,-500.0,0.000212,2]
[421579719,1777913448000,-500.0,0.000212,2]
[421579709,1777913448000,-500.0,0.000212,2]
[421579711,1777913448000,-500.0,0.000212,2]
[421579727,1777913448000,-500.0,0.000212,2]
[421579723,1777913448000,-500.0,0.000212,2]
[421579717,1777913448000,-500.0,0.000212,2]
[421579736,1777913448000,-500.0,0.000212,2]
[421579731,1777913448000,-500.0,0.000212,2]
[421579730,1777913448000,-500.0,0.000212,2]
[421579733,1777913448000,-500.0,0.000212,2]
[421579734,1777913448000,-500.0,0.000212,2]
[421579732,1777913448000,-500.0,0.000212,2]
[421579729,1777913448000,-500.0,0.000212,2]
[421579735,1777913448000,-500.0,0.000212,2]
[421579738,1777913448000,-500.0,0.000212,2]
[421579742,1777913448000,-500.0,0.000212,2]
[421579747,1777913448000,-500.0,0.000212,2]
[421579746,1777913448000,-500.0,0.000212,2]
[421579741,1777913448000,-500.0,0.000212,2]
[421579745,1777913448000,-500.0,0.000212,2]
[421579728,1777913448000,-500.0,0.000212,2]
[421579724,1777913448000,-500.0,0.000212,2]
[421579680,1777913448000,-500.0,0.000212,2]
[421579710,1777913448000,-500.0,0.000212,2]
[421579740,1777913448000,-500.0,0.000212,2]
[421579679,1777913448000,-500.0,0.000212,2]
[421579682,1777913448000,-500.0,0.000212,2]
[421579683,1777913448000,-500.0,0.000212,2]
[421579681,1777913448000,-500.0,0.000212,2]
[421579685,1777913448000,-500.0,0.000212,2]
[421579686,1777913448000,-500.0,0.000212,2]
[421579684,1777913448000,-500.0,0.000212,2]
[421579689,1777913448000,-500.0,0.000212,2]
[421579687,1777913448000,-500.0,0.000212,2]
[421579688,1777913448000,-500.0,0.000212,2]
[421579690,1777913448000,-500.0,0.000212,2]
[421579691,1777913448000,-500.0,0.000212,2]
[421579692,1777913448000,-500.0,0.000212,2]
[421579694,1777913448000,-500.0,0.000212,2]
[421579693,1777913448000,-500.0,0.000212,2]
[421579695,1777913448000,-500.0,0.000212,2]
[421579707,1777913448000,-500.0,0.000212,2]
[421579699,1777913448000,-500.0,0.000212,2]
[421579704,1777913448000,-500.0,0.000212,2]
[421579708,1777913448000,-500.0,0.000212,2]
[421579706,1777913448000,-500.0,0.000212,2]
[421579705,1777913448000,-500.0,0.000212,2]
[421579697,1777913448000,-500.0,0.000212,2]
[421579700,1777913448000,-500.0,0.000212,2]
[421579702,1777913448000,-500.0,0.000212,2]
[421579722,1777913448000,-500.0,0.000212,2]
[421579720,1777913448000,-500.0,0.000212,2]
[421579739,1777913448000,-500.0,0.000212,2]
[421579801,1777913448000,-2290.04373225,0.00022314,2]
[421579737,1777913448000,-500.0,0.000212,2]
[421579772,1777913448000,-496.0,0.00022,2]
[421579780,1777913448000,-151.0,0.00022,2]
[421579781,1777913448000,-151.0,0.00022,2]
[421579782,1777913448000,-183.0,0.00022,2]
[421579783,1777913448000,-500.0,0.00022061,2]
[421579778,1777913448000,-151.0,0.00022,2]
[421579784,1777913448000,-500.0,0.00022061,2]
[421579790,1777913448000,-500.0,0.00022102,2]
[421579787,1777913448000,-151.0,0.00022085,2]
[421579786,1777913448000,-500.0,0.00022061,2]
[421579785,1777913448000,-500.0,0.00022061,2]
[421579788,1777913448000,-151.0,0.00022085,2]
[421579779,1777913448000,-151.0,0.00022,2]
[421579789,1777913448000,-151.0,0.00022085,2]
[421579795,1777913448000,-546.39824526,0.00022167,2]
[421579793,1777913448000,-207.73793629,0.00022135,2]
[421579792,1777913448000,-174.3,0.00022115,2]
[421579796,1777913448000,-5529.0,0.000222,5]
[421579799,1777913448000,-500.0,0.00022247,2]
[421579798,1777913448000,-220.25,0.00022215,2]
[421579797,1777913448000,-500.0,0.00022215,2]
[421579800,1777913448000,-264.3,0.00022256,2]
[421579804,1777913448000,-181.90842529,0.00022407,2]
[421579802,1777913448000,-585.6,0.00022353,2]
[421579803,1777913448000,-401.0,0.00022375,2]
[421579744,1777913448000,-500.0,0.000212,2]
[421579794,1777913448000,-161.03,0.00022163,2]
[421579774,1777913448000,-198.0,0.00022,2]
[421579791,1777913448000,-1000.0,0.00022102,2]
[421579777,1777913448000,-151.0,0.00022,2]
[421579743,1777913448000,-500.0,0.000212,2]
[421579775,1777913448000,-577.0,0.00022,2]
[421579749,1777913448000,-223.593727,0.000212,2]
[421579759,1777913448000,-152.349553,0.00021506,2]
[421579748,1777913448000,-500.0,0.000212,2]
[421579753,1777913448000,-5529.0,0.000214,3]
[421579751,1777913448000,-151.0,0.000212,2]
[421579750,1777913448000,-151.0,0.000212,2]
[421579752,1777913448000,-151.0,0.000212,2]
[421579758,1777913448000,-151.0,0.00021506,2]
[421579756,1777913448000,-335.381476,0.00021506,2]
[421579754,1777913448000,-335.381476,0.00021506,2]
[421579757,1777913448000,-335.381476,0.00021506,2]
[421579761,1777913448000,-3043.5178468,0.00021506,2]
[421579755,1777913448000,-335.381476,0.00021506,2]
[421579766,1777913448000,-408.0,0.00021627,2]
[421579776,1777913448000,-151.0,0.00022,2]
[421579773,1777913448000,-169.0,0.00022,2]
[421579767,1777913448000,-500.0,0.00021667,2]
[421579768,1777913448000,-5000.0,0.00021918,2]
[421579764,1777913448000,-500.0,0.00021554,2]
[421579770,1777913448000,-25973.83865924,0.00022,4]
[421579771,1777913448000,-188.0,0.00022,2]
[421579769,1777913448000,-450.0,0.00022,2]
[421579765,1777913448000,-500.0,0.00021554,2]
[421579760,1777913448000,-67378.0869549,0.00021506,2]
[421579762,1777913448000,-3857.52166123,0.00021527,2]
[421579763,1777913448000,-7376.58466914,0.00021527,2]
[421579849,1777913449000,-151.0,0.00024658,2]
[421579847,1777913449000,-151.0,0.00024658,2]
[421579844,1777913449000,-250.65888,0.00024658,2]
[421579843,1777913449000,-151.0,0.00024658,2]
[421579839,1777913449000,-500.0,0.00024657,2]
[421579840,1777913449000,-151.0,0.00024658,2]
[421579836,1777913449000,-2648.2132415,0.00024113,2]
[421579837,1777913449000,-585.6,0.00024324,2]
[421579838,1777913449000,-1085.82,0.000244,7]
[421579842,1777913449000,-151.0,0.00024658,2]
[421579850,1777913449000,-151.0,0.00024658,2]
[421579834,1777913449000,-577.0,0.00024,2]
[421579841,1777913449000,-151.0,0.00024658,2]
[421579851,1777913449000,-155.335241,0.00024658,2]
[421579873,1777913449000,-335.381476,0.000264,2]
[421579856,1777913449000,-180.07624584,0.00025,2]
[421579859,1777913449000,-474.57,0.00025075,2]
[421579860,1777913449000,-165.28689772,0.00025094,2]
[421579858,1777913449000,-584.70087969,0.00025,2]
[421579854,1777913449000,-206.0,0.00025,2]
[421579857,1777913449000,-217.0,0.00025,2]
[421579852,1777913449000,-380.12,0.00024658,2]
[421579855,1777913449000,-506.0,0.00025,2]
[421579853,1777913449000,-1000.0,0.00024658,2]
[421579862,1777913449000,-166.66,0.00025518,30]
[421579872,1777913449000,-335.381476,0.000264,2]
[421579861,1777913449000,-474.57,0.00025349,2]
[421579846,1777913449000,-151.0,0.00024658,2]
[421579848,1777913449000,-151.0,0.00024658,2]
[421579835,1777913449000,-953.6071641,0.00024113,2]
[421579806,1777913449000,-181.90842528,0.00022407,2]
[421579826,1777913449000,-160.0,0.00023794,2]
[421579865,1777913449000,-177.0,0.00025798,3]
[421579805,1777913449000,-181.90842528,0.00022407,2]
[421579808,1777913449000,-951.0,0.00022566,5]
[421579807,1777913449000,-2985.49,0.00022562,2]
[421579810,1777913449000,-1000.0,0.00022609,2]
[421579819,1777913449000,-198.0,0.00023,2]
[421579820,1777913449000,-577.0,0.00023,2]
[421579809,1777913449000,-987.0,0.00022566,5]
[421579815,1777913449000,-667.79457908,0.00023,2]
[421579817,1777913449000,-496.0,0.00023,2]
[421579811,1777913449000,-500.0,0.00022609,2]
[421579813,1777913449000,-500.0,0.00022609,2]
[421579812,1777913449000,-500.0,0.00022609,2]
[421579845,1777913449000,-151.0,0.00024658,2]
[421579814,1777913449000,-1500.0,0.0002265,2]
[421579818,1777913449000,-169.0,0.00023,2]
[421579823,1777913449000,-151.15709471,0.00023423,2]
[421579821,1777913449000,-556.94,0.0002314,2]
[421579827,1777913449000,-10043.11094307,0.000238,2]
[421579825,1777913449000,-162.48539177,0.00023794,2]
[421579833,1777913449000,-198.0,0.00024,2]
[421579824,1777913449000,-225.41478422,0.00023423,2]
[421579831,1777913449000,-496.0,0.00024,2]
[421579829,1777913449000,-679.1006245,0.00023917,2]
[421579822,1777913449000,-612.63145298,0.00023157,2]
[421579828,1777913449000,-15034.0833327,0.00023917,2]
[421579830,1777913449000,-188.0,0.00024,2]
[421579832,1777913449000,-169.0,0.00024,2]
[421579816,1777913449000,-188.0,0.00023,2]
[421579867,1777913449000,-4113.08830698,0.00026006,2]
[421579914,1777913449000,-190.910721,0.00027397,2]
[421579870,1777913449000,-230.08675194,0.00026367,3]
[421579901,1777913449000,-190.910721,0.00027397,2]
[421579908,1777913449000,-190.910721,0.00027397,2]
[421579907,1777913449000,-190.910721,0.00027397,2]
[421579903,1777913449000,-190.910721,0.00027397,2]
[421579905,1777913449000,-190.910721,0.00027397,2]
[421579902,1777913449000,-190.910721,0.00027397,2]
[421579906,1777913449000,-190.910721,0.00027397,2]
[421579904,1777913449000,-190.910721,0.00027397,2]
[421579910,1777913449000,-190.910721,0.00027397,2]
[421579921,1777913449000,-162.281444,0.00027397,2]
[421579919,1777913449000,-151.0,0.00027397,2]
[421579922,1777913449000,-162.281444,0.00027397,2]
[421579909,1777913449000,-190.910721,0.00027397,2]
[421579900,1777913449000,-190.910721,0.00027397,2]
[421579920,1777913449000,-151.0,0.00027397,2]
[421579911,1777913449000,-190.910721,0.00027397,2]
[421579915,1777913449000,-190.910721,0.00027397,2]
[421579913,1777913449000,-190.910721,0.00027397,2]
[421579917,1777913449000,-151.0,0.00027397,2]
[421579912,1777913449000,-190.910721,0.00027397,2]
[421579927,1777913449000,-393.5,0.00027397,10]
[421579916,1777913449000,-190.910727,0.00027397,2]
[421579923,1777913449000,-162.281444,0.00027397,2]
[421579926,1777913449000,-472.2,0.00027397,10]
[421579924,1777913449000,-162.281444,0.00027397,2]
[421579928,1777913449000,-500.0,0.000274,7]
[421579929,1777913449000,-165.53,0.000274,2]
[421579863,1777913449000,-474.57,0.00025623,2]
[421579918,1777913449000,-151.0,0.00027397,2]
[421579898,1777913449000,-190.910721,0.00027397,2]
[421579925,1777913449000,-566.64,0.00027397,10]
[421579894,1777913449000,-300.0,0.00027397,2]
[421579866,1777913449000,-294.42,0.00025897,2]
[421579864,1777913449000,-2290.04373225,0.00025785,2]
[421579871,1777913449000,-27791.49190631,0.000264,2]
[421579869,1777913449000,-154.0,0.00026367,3]